[Event "Turkish Cup 2022"]
[Site "Sakarya"]
[Date "2022.03.30"]
[Round "9.29"]
[White "Kilic, Cihan"]
[Black "Melik, Enes"]
[Result "1-0"]
[ECO "A80"]
[WhiteElo "1874"]
[BlackElo "1592"]
[Annotator "NA"]
[PlyCount "83"]
[EventDate "2022.03.25"]
[EventType "swiss"]
[EventCountry "TUR"]
[SourceTitle "playchess.com"]
[Source "ChessBase"]
[SourceQuality "1"]
[TimeControl "5400+30"]

1. d4 {[%emt 0:03:00]} f5 {[%emt 0:01:00]} 2. Nf3 {[%emt 0:00:30]} e6 {[%emt 0:00:30]} 3. Bf4 {[%emt 0:00:30]} Nf6 {[%emt 0:00:30]} 4. e3 {[%emt 0:00:30]} b6 {[%emt 0:00:30]} 5. c4 {[%emt 0:02:30]} Bb4+ {[%emt 0:00:30]} 6. Nc3 {[%emt 0:00:30]} Bb7 {[%emt 0:00:30]} 7. Bd3 {[%emt 0:00:30]} O-O {[%emt 0:00:30]} 8. O-O {[%emt 0:00:30]} Bxc3 {[%emt 0:00:30]} 9. bxc3 {[%emt 0:00:30]} d6 {[%emt 0:00:30]} 10. Qc2 {[%emt 0:00:30]} Qe8 {[%emt 0:00:30]} 11. Nd2 {[%emt 0:07:30]} Nbd7 {[%emt 0:09:30]} 12. Rae1 {[%emt 0:04:30]} Qg6 {[%emt 0:09:30]} 13. f3 {[%emt 0:01:30]} Nh5 {[%emt 0:00:30]} 14. h3 {[%emt 0:01:30]} Nxf4 {[%emt 0:08:30]} 15. exf4 {[%emt 0:03:30]} Qh6 {[%emt 0:01:30]} 16. Nb3 {[%emt 0:16:30]} Rae8 {[%emt 0:02:30]} 17. Qd2 {[%emt 0:01:30]} Nf6 {[%emt 0:01:30]} 18. Kh2 {[%emt 0:01:30]} Nh5 {[%emt 0:03:30]} 19. g3 {[%emt 0:00:30]} Rf6 {[%emt 0:18:30]} 20. d5 {[%emt 0:05:30]} Ref8 {[%emt 0:07:30]} 21. Rxe6 {[%emt 0:02:30]} Rxe6 {[%emt 0:00:30]} 22. dxe6 {[%emt 0:00:00]} Qxe6 {[%emt 0:00:30]} 23. Nd4 {[%emt 0:00:00]} Qd7 {[%emt 0:05:30]} 24. Re1 {[%emt 0:04:30]} g6 {[%emt 0:01:30]} 25. Qe3 {[%emt 0:04:30]} Ng7 {[%emt 0:04:30]} 26. Qe7 {[%emt 0:10:30]} Rf7 {[%emt 0:00:30]} 27. Qxd7 {[%emt 0:03:30]} Rxd7 {[%emt 0:00:30]} 28. Re3 {[%emt 0:02:30]} Kf8 {[%emt 0:03:10]} 29. g4 {[%emt 0:00:30]} fxg4 {[%emt 0:08:37]} 30. fxg4 {[%emt 0:00:30]} Re7 {[%emt 0:02:25]} 31. Rxe7 {[%emt 0:02:30]} Kxe7 {[%emt 0:00:30]} 32. Kg3 {[%emt 0:00:30]} a6 {[%emt 0:04:47]} 33. h4 {[%emt 0:02:01]} a5 {[%emt 0:02:21]} 34. h5 {[%emt 0:01:38]} Kf7 {[%emt 0:01:55]} 35. Kh4 {[%emt 0:04:22]} Kf6 {[%emt 0:01:18]} 36. h6 {[%emt 0:01:27]} Ne8 {[%emt 0:00:16]} 37. g5+ {[%emt 0:00:15]} Kf7 {[%emt 0:00:09]} 38. f5 {[%emt 0:00:27]} gxf5 {[%emt 0:01:08]} 39. Bxf5 {[%emt 0:00:50]} Kg8 {[%emt 0:00:16]} 40. Bd7 {[%emt 0:00:12]} c5 {[%emt 0:01:06]} 41. Nb5 {[%emt 0:00:13]} Kf8 {[%emt 0:00:47]} 42. Bxe8 {[%emt 0:00:05]} 1-0

[Event "Turkish Cup 2022"]
[Site "Sakarya"]
[Date "2022.03.30"]
[Round "9.30"]
[White "Karadag, Eflatun Cem"]
[Black "Celik, Ege Yigit"]
[Result "0-1"]
[ECO "A04"]
[WhiteElo "1800"]
[BlackElo "1466"]
[Annotator "NA"]
[PlyCount "108"]
[EventDate "2022.03.25"]
[EventType "swiss"]
[EventCountry "TUR"]
[SourceTitle "playchess.com"]
[Source "ChessBase"]
[SourceQuality "1"]
[TimeControl "5400+30"]

1. e4 {[%emt 0:03:00]} c5 {[%emt 0:01:00]} 2. Nf3 {[%emt 0:00:30]} Nc6 {[%emt 0:00:30]} 3. d3 {[%emt 0:00:30]} g6 {[%emt 0:00:30]} 4. g3 {[%emt 0:03:30]} Bg7 {[%emt 0:00:30]} 5. Bg2 {[%emt 0:00:30]} d6 {[%emt 0:00:30]} 6. O-O {[%emt 0:00:30]} e5 {[%emt 0:05:30]} 7. Be3 {[%emt 0:01:30]} Nge7 {[%emt 0:00:30]} 8. c3 {[%emt 0:04:30]} O-O {[%emt 0:00:30]} 9. Qd2 {[%emt 0:00:30]} b6 {[%emt 0:19:30]} 10. Bh6 {[%emt 0:02:30]} Bb7 {[%emt 0:08:30]} 11. Bxg7 {[%emt 0:04:30]} Kxg7 {[%emt 0:00:30]} 12. d4 {[%emt 0:00:30]} Qc7 {[%emt 0:00:30]} 13. Na3 {[%emt 0:00:30]} a6 {[%emt 0:02:30]} 14. d5 {[%emt 0:06:30]} Nd8 {[%emt 0:06:30]} 15. Nc4 {[%emt 0:01:30]} b5 {[%emt 0:01:30]} 16. Ncxe5 {[%emt 0:03:30]} dxe5 {[%emt 0:20:30]} 17. d6 {[%emt 0:01:30]} Qd7 {[%emt 0:01:30]} 18. Nxe5 {[%emt 0:00:30]} Qe6 {[%emt 0:00:30]} 19. dxe7 {[%emt 0:00:30]} Qxe7 {[%emt 0:01:30]} 20. Nd7 {[%emt 0:03:30]} Re8 {[%emt 0:00:30]} 21. f4 {[%emt 0:05:30]} Bc6 {[%emt 0:19:46]} 22. e5 {[%emt 0:03:30]} Bxg2 {[%emt 0:02:39]} 23. Kxg2 {[%emt 0:04:30]} Ne6 {[%emt 0:04:11]} 24. Nf6 {[%emt 0:05:30]} Red8 {[%emt 0:00:30]} 25. Qe2 {[%emt 0:00:30]} Qb7+ {[%emt 0:01:23]} 26. Kg1 {[%emt 0:01:30]} c4 {[%emt 0:00:40]} 27. Rf3 {[%emt 0:02:30]} Qb6+ {[%emt 0:00:33]} 28. Kg2 {[%emt 0:02:30]} Qc6 {[%emt 0:00:17]} 29. h4 {[%emt 0:00:30]} Rd3 {[%emt 0:00:35]} 30. Ne4 {[%emt 0:01:30]} Qd5 {[%emt 0:00:35]} 31. h5 {[%emt 0:01:30]} Nc5 {[%emt 0:00:46]} 32. h6+ {[%emt 0:02:30]} Kh8 {[%emt 0:00:01]} 33. Nxc5 {[%emt 0:00:30]} Rd2 {[%emt 0:00:09]} 34. Qxd2 {[%emt 0:13:30]} Qxd2+ {[%emt 0:00:30]} 35. Kh3 {[%emt 0:00:30]} Qd5 {[%emt 0:00:00]} 36. Raf1 {[%emt 0:00:00]} Qxc5 {[%emt 0:00:00]} 37. g4 {[%emt 0:00:00]} Rd8 {[%emt 0:00:41]} 38. g5 {[%emt 0:00:30]} Rd3 {[%emt 0:00:00]} 39. Kg2 {[%emt 0:00:30]} Qd5 {[%emt 0:00:00]} 40. Kg3 {[%emt 0:00:30]} Kg8 {[%emt 0:00:00]} 41. R1f2 {[%emt 0:01:30]} Qe4 {[%emt 0:00:14]} 42. b4 {[%emt 0:00:30]} Rxf3+ {[%emt 0:00:42]} 43. Rxf3 {[%emt 0:00:30]} Qe1+ {[%emt 0:00:00]} 44. Kh3 {[%emt 0:00:30]} Kf8 {[%emt 0:00:09]} 45. Kg2 {[%emt 0:00:30]} Qd2+ {[%emt 0:00:14]} 46. Kg3 {[%emt 0:00:30]} Qxa2 {[%emt 0:00:30]} 47. f5 {[%emt 0:00:00]} gxf5 {[%emt 0:00:44]} 48. Rxf5 {[%emt 0:00:00]} Qc2 {[%emt 0:00:09]} 49. Kf4 {[%emt 0:00:30]} Qxc3 {[%emt 0:00:17]} 50. e6 {[%emt 0:00:30]} Qd4+ {[%emt 0:00:04]} 51. Kf3 {[%emt 0:00:00]} Qd3+ {[%emt 0:01:56]} 52. Kf4 {[%emt 0:00:00]} Qf1+ {[%emt 0:00:30]} 53. Ke5 {[%emt 0:00:00]} Qe2+ {[%emt 0:00:00]} 54. Kf4 {[%emt 0:00:00]} Qxe6 {[%emt 0:00:00]} 0-1

[Event "Turkish Cup 2022"]
[Site "Sakarya"]
[Date "2022.03.30"]
[Round "9.31"]
[White "Kuru, Atilla"]
[Black "Dolek, Gokalp Deniz"]
[Result "1-0"]
[ECO "A11"]
[WhiteElo "1674"]
[BlackElo "1520"]
[Annotator "NA"]
[PlyCount "95"]
[EventDate "2022.03.25"]
[EventType "swiss"]
[EventCountry "TUR"]
[SourceTitle "playchess.com"]
[Source "ChessBase"]
[SourceQuality "1"]
[TimeControl "5400+30"]

1. c4 {[%emt 0:01:00]} Nf6 {[%emt 0:01:00]} 2. Nc3 {[%emt 0:00:00]} c6 {[%emt 0:01:30]} 3. Nf3 {[%emt 0:00:00]} d5 {[%emt 0:00:30]} 4. e3 {[%emt 0:00:30]} Nbd7 {[%emt 0:00:30]} 5. b3 {[%emt 0:00:00]} g6 {[%emt 0:04:30]} 6. Bb2 {[%emt 0:00:00]} dxc4 {[%emt 0:02:30]} 7. bxc4 {[%emt 0:09:30]} Bg7 {[%emt 0:01:30]} 8. Be2 {[%emt 0:01:30]} O-O {[%emt 0:00:30]} 9. O-O {[%emt 0:00:00]} Qc7 {[%emt 0:01:30]} 10. d4 {[%emt 0:00:00]} Nb6 {[%emt 0:01:30]} 11. e4 {[%emt 0:00:30]} Rd8 {[%emt 0:02:30]} 12. Qc2 {[%emt 0:00:30]} Nh5 {[%emt 0:00:00]} 13. c5 {[%emt 0:01:30]} Nd7 {[%emt 0:00:00]} 14. Bc4 {[%emt 0:00:30]} Nf8 {[%emt 0:01:30]} 15. Ng5 {[%emt 0:06:30]} e6 {[%emt 0:00:30]} 16. Ne2 {[%emt 0:01:30]} Qe7 {[%emt 0:04:30]} 17. f4 {[%emt 0:00:30]} Nf6 {[%emt 0:08:30]} 18. h3 {[%emt 0:01:30]} b6 {[%emt 0:01:30]} 19. Rac1 {[%emt 0:12:30]} b5 {[%emt 0:01:30]} 20. Bb3 {[%emt 0:01:30]} a5 {[%emt 0:00:30]} 21. a3 {[%emt 0:00:30]} h6 {[%emt 0:07:30]} 22. Nf3 {[%emt 0:01:30]} Ba6 {[%emt 0:00:30]} 23. Ne5 {[%emt 0:00:30]} Rac8 {[%emt 0:03:30]} 24. Bc3 {[%emt 0:00:30]} b4 {[%emt 0:00:30]} 25. axb4 {[%emt 0:01:30]} axb4 {[%emt 0:00:30]} 26. Bb2 {[%emt 0:00:30]} Nh5 {[%emt 0:01:30]} 27. g4 {[%emt 0:01:30]} Bxe2 {[%emt 0:00:30]} 28. Rf2 {[%emt 0:04:30]} Nxf4 {[%emt 0:07:30]} 29. Rxf4 {[%emt 0:00:30]} Bxe5 {[%emt 0:00:00]} 30. dxe5 {[%emt 0:00:30]} Qg5 {[%emt 0:00:00]} 31. Rf2 {[%emt 0:00:30]} Rd2 {[%emt 0:00:30]} 32. Rxe2 {[%emt 0:01:30]} Rxc2 {[%emt 0:00:00]} 33. Rcxc2 {[%emt 0:00:30]} Rd8 {[%emt 0:00:00]} 34. Kg2 {[%emt 0:01:30]} Qf4 {[%emt 0:01:30]} 35. Bc1 {[%emt 0:02:30]} Qxe5 {[%emt 0:00:00]} 36. Bb2 {[%emt 0:01:30]} Qc7 {[%emt 0:01:00]} 37. Red2 {[%emt 0:02:30]} g5 {[%emt 0:00:30]} 38. e5 {[%emt 0:02:30]} Ng6 {[%emt 0:00:30]} 39. Rd6 {[%emt 0:00:00]} Rxd6 {[%emt 0:01:30]} 40. exd6 {[%emt 0:00:00]} Nf4+ {[%emt 0:01:30]} 41. Kf3 {[%emt 0:01:30]} Qb7 {[%emt 0:03:30]} 42. Be5 {[%emt 0:00:30]} Qa6 {[%emt 0:01:30]} 43. Bxf4 {[%emt 0:01:30]} Qd3+ {[%emt 0:00:30]} 44. Be3 {[%emt 0:00:30]} Qxb3 {[%emt 0:11:30]} 45. Rd2 {[%emt 0:00:30]} Qc4 {[%emt 0:00:00]} 46. d7 {[%emt 0:00:30]} Qf1+ {[%emt 0:00:00]} 47. Kg3 {[%emt 0:00:30]} Qe1+ {[%emt 0:00:30]} 48. Kg2 {[%emt 0:00:00]} 1-0

[Event "Turkish Cup 2022"]
[Site "Sakarya"]
[Date "2022.03.30"]
[Round "9.32"]
[White "Ulu, Ekrem"]
[Black "Durucay, Uygar"]
[Result "0-1"]
[ECO "D00"]
[WhiteElo "1692"]
[BlackElo "1700"]
[Annotator "NA"]
[PlyCount "129"]
[EventDate "2022.03.25"]
[EventType "swiss"]
[EventCountry "TUR"]
[SourceTitle "playchess.com"]
[Source "ChessBase"]
[SourceQuality "1"]
[TimeControl "5400+30"]

1. d4 {[%emt 0:01:00]} Nf6 {[%emt 0:01:00]} 2. Bf4 {[%emt 0:01:30]} d5 {[%emt 0:00:30]} 3. e3 {[%emt 0:00:00]} c5 {[%emt 0:00:30]} 4. c3 {[%emt 0:00:00]} Nc6 {[%emt 0:01:30]} 5. Bb5 {[%emt 0:13:30]} Qb6 {[%emt 0:03:30]} 6. Bxc6+ {[%emt 0:00:30]} bxc6 {[%emt 0:00:00]} 7. b3 {[%emt 0:02:30]} a5 {[%emt 0:05:00]} 8. dxc5 {[%emt 0:01:30]} Qxc5 {[%emt 0:00:30]} 9. Ne2 {[%emt 0:00:00]} Ba6 {[%emt 0:03:30]} 10. O-O {[%emt 0:04:00]} e6 {[%emt 0:00:30]} 11. Re1 {[%emt 0:00:00]} Be7 {[%emt 0:01:30]} 12. Qc2 {[%emt 0:07:00]} O-O {[%emt 0:02:30]} 13. Nd2 {[%emt 0:02:30]} Nd7 {[%emt 0:02:30]} 14. Rac1 {[%emt 0:04:30]} Rac8 {[%emt 0:04:30]} 15. c4 {[%emt 0:10:30]} Qa7 {[%emt 0:05:30]} 16. Bg3 {[%emt 0:04:30]} Rfd8 {[%emt 0:02:30]} 17. Nd4 {[%emt 0:05:30]} Bf6 {[%emt 0:04:30]} 18. N4f3 {[%emt 0:00:30]} Nc5 {[%emt 0:01:30]} 19. Red1 {[%emt 0:03:30]} Qe7 {[%emt 0:03:30]} 20. Ne5 {[%emt 0:10:30]} Bb7 {[%emt 0:14:30]} 21. h3 {[%emt 0:07:43]} g6 {[%emt 0:03:30]} 22. Nef3 {[%emt 0:08:00]} e5 {[%emt 0:01:30]} 23. Nf1 {[%emt 0:00:56]} e4 {[%emt 0:01:30]} 24. Nd4 {[%emt 0:00:30]} Nd3 {[%emt 0:01:30]} 25. Rb1 {[%emt 0:03:36]} Be5 {[%emt 0:03:30]} 26. Ne2 {[%emt 0:01:49]} Nb4 {[%emt 0:00:30]} 27. Qc1 {[%emt 0:02:11]} Nxa2 {[%emt 0:01:30]} 28. Qc2 {[%emt 0:00:30]} Nb4 {[%emt 0:00:30]} 29. Qc1 {[%emt 0:00:00]} Nd3 {[%emt 0:00:00]} 30. Qc2 {[%emt 0:00:00]} Bg7 {[%emt 0:02:00]} 31. Nc1 {[%emt 0:00:00]} Nb4 {[%emt 0:00:00]} 32. Qe2 {[%emt 0:00:04]} Ba6 {[%emt 0:02:00]} 33. Nd2 {[%emt 0:01:28]} f5 {[%emt 0:00:30]} 34. f3 {[%emt 0:03:20]} Rd7 {[%emt 0:01:30]} 35. Be1 {[%emt 0:02:59]} Rcd8 {[%emt 0:01:30]} 36. Nf1 {[%emt 0:00:11]} dxc4 {[%emt 0:01:30]} 37. Rxd7 {[%emt 0:00:03]} Qxd7 {[%emt 0:00:30]} 38. Bxb4 {[%emt 0:00:19]} axb4 {[%emt 0:00:30]} 39. bxc4 {[%emt 0:00:04]} exf3 {[%emt 0:00:30]} 40. gxf3 {[%emt 0:00:53]} c5 {[%emt 0:00:30]} 41. Nb3 {[%emt 0:00:08]} Qd6 {[%emt 0:00:30]} 42. Rc1 {[%emt 0:01:18]} Bf8 {[%emt 0:03:30]} 43. Ra1 {[%emt 0:01:46]} Bb7 {[%emt 0:01:30]} 44. Ra2 {[%emt 0:00:28]} Qd3 {[%emt 0:00:30]} 45. Qxd3 {[%emt 0:00:50]} Rxd3 {[%emt 0:00:30]} 46. Na5 {[%emt 0:00:30]} Bxf3 {[%emt 0:00:00]} 47. Kf2 {[%emt 0:00:00]} Be4 {[%emt 0:01:00]} 48. Nd2 {[%emt 0:00:00]} Ra3 {[%emt 0:00:30]} 49. Rxa3 {[%emt 0:00:32]} bxa3 {[%emt 0:00:30]} 50. Nxe4 {[%emt 0:00:30]} fxe4 {[%emt 0:00:30]} 51. Ke2 {[%emt 0:00:30]} a2 {[%emt 0:00:30]} 52. Nb3 {[%emt 0:00:30]} Bg7 {[%emt 0:00:30]} 53. Kf2 {[%emt 0:00:30]} a1=Q {[%emt 0:00:30]} 54. Nxa1 {[%emt 0:00:30]} Bxa1 {[%emt 0:00:30]} 55. Kg3 {[%emt 0:00:30]} Be5+ {[%emt 0:00:30]} 56. Kg4 {[%emt 0:00:30]} h6 {[%emt 0:00:30]} 57. h4 {[%emt 0:00:30]} Kf7 {[%emt 0:00:30]} 58. h5 {[%emt 0:00:30]} gxh5+ {[%emt 0:00:30]} 59. Kxh5 {[%emt 0:00:30]} Kg7 {[%emt 0:00:30]} 60. Kh4 {[%emt 0:00:30]} Kg6 {[%emt 0:00:30]} 61. Kg4 {[%emt 0:00:30]} h5+ {[%emt 0:00:30]} 62. Kh4 {[%emt 0:00:30]} Bc3 {[%emt 0:00:30]} 63. Kg3 {[%emt 0:00:30]} Kg5 {[%emt 0:00:30]} 64. Kg2 {[%emt 0:00:30]} Kg4 {[%emt 0:00:30]} 65. Kf2 {[%emt 0:00:30]} 0-1

[Event "Turkish Cup 2022"]
[Site "Sakarya"]
[Date "2022.03.30"]
[Round "9.33"]
[White "Hatirli, Ugur Can"]
[Black "Bagci, Hikmet"]
[Result "1-0"]
[ECO "E18"]
[WhiteElo "1818"]
[BlackElo "1630"]
[Annotator "NA"]
[PlyCount "77"]
[EventDate "2022.03.25"]
[EventType "swiss"]
[EventCountry "TUR"]
[SourceTitle "playchess.com"]
[Source "ChessBase"]
[SourceQuality "1"]
[TimeControl "5400+30"]

1. d4 {[%emt 0:01:00]} Nf6 {[%emt 0:01:00]} 2. Nf3 {[%emt 0:00:30]} e6 {[%emt 0:00:30]} 3. g3 {[%emt 0:00:00]} b6 {[%emt 0:00:30]} 4. Bg2 {[%emt 0:00:00]} Bb7 {[%emt 0:00:30]} 5. O-O {[%emt 0:00:30]} Be7 {[%emt 0:00:30]} 6. c4 {[%emt 0:00:30]} d5 {[%emt 0:00:30]} 7. Nc3 {[%emt 0:00:30]} O-O {[%emt 0:00:30]} 8. Ne5 {[%emt 0:02:30]} Nbd7 {[%emt 0:00:00]} 9. Bf4 {[%emt 0:01:30]} Nh5 {[%emt 0:07:00]} 10. cxd5 {[%emt 0:00:30]} Nxf4 {[%emt 0:00:30]} 11. gxf4 {[%emt 0:00:30]} Nf6 {[%emt 0:00:30]} 12. dxe6 {[%emt 0:01:30]} Bxg2 {[%emt 0:00:30]} 13. exf7+ {[%emt 0:00:30]} Kh8 {[%emt 0:00:30]} 14. Kxg2 {[%emt 0:00:00]} Bd6 {[%emt 0:01:30]} 15. e3 {[%emt 0:00:00]} Qe7 {[%emt 0:01:30]} 16. Qf3 {[%emt 0:01:30]} c5 {[%emt 0:02:30]} 17. Qh3 {[%emt 0:00:30]} Qb7+ {[%emt 0:01:30]} 18. f3 {[%emt 0:00:30]} Bxe5 {[%emt 0:00:30]} 19. fxe5 {[%emt 0:02:30]} Nd5 {[%emt 0:00:00]} 20. Rae1 {[%emt 0:00:30]} Qxf7 {[%emt 0:02:00]} 21. e6 {[%emt 0:05:30]} Qb7 {[%emt 0:00:30]} 22. Qh5 {[%emt 0:01:30]} Nf6 {[%emt 0:00:30]} 23. Qe5 {[%emt 0:00:30]} Rfe8 {[%emt 0:01:30]} 24. d5 {[%emt 0:00:30]} Qe7 {[%emt 0:02:30]} 25. e4 {[%emt 0:00:30]} Rad8 {[%emt 0:00:30]} 26. Rd1 {[%emt 0:01:30]} a6 {[%emt 0:01:30]} 27. h3 {[%emt 0:00:30]} b5 {[%emt 0:00:30]} 28. Ne2 {[%emt 0:00:30]} b4 {[%emt 0:01:30]} 29. Ng3 {[%emt 0:00:30]} g6 {[%emt 0:00:30]} 30. f4 {[%emt 0:00:30]} Kg8 {[%emt 0:00:30]} 31. f5 {[%emt 0:00:00]} g5 {[%emt 0:00:30]} 32. d6 {[%emt 0:00:00]} Qg7 {[%emt 0:00:30]} 33. e7 {[%emt 0:00:30]} Rd7 {[%emt 0:01:30]} 34. Qe6+ {[%emt 0:00:30]} Kh8 {[%emt 0:00:30]} 35. e5 {[%emt 0:00:00]} Rdxe7 {[%emt 0:04:30]} 36. exf6 {[%emt 0:00:00]} Rxe6 {[%emt 0:01:30]} 37. fxg7+ {[%emt 0:00:30]} Kxg7 {[%emt 0:00:30]} 38. fxe6 {[%emt 0:00:30]} Rxe6 {[%emt 0:01:30]} 39. d7 {[%emt 0:00:00]} 1-0

[Event "Turkish Cup 2022"]
[Site "Sakarya"]
[Date "2022.03.30"]
[Round "9.34"]
[White "Ozturk, Mustafa"]
[Black "Aysoy, Veysi"]
[Result "1-0"]
[ECO "B01"]
[WhiteElo "1375"]
[BlackElo "1811"]
[Annotator "NA"]
[PlyCount "138"]
[EventDate "2022.03.25"]
[EventType "swiss"]
[EventCountry "TUR"]
[SourceTitle "playchess.com"]
[Source "ChessBase"]
[SourceQuality "1"]
[TimeControl "5400+30"]

1. e4 {[%emt 0:01:00]} d5 {[%emt 0:01:00]} 2. exd5 {[%emt 0:00:30]} Nf6 {[%emt 0:00:30]} 3. Bb5+ {[%emt 0:00:30]} Bd7 {[%emt 0:00:30]} 4. Be2 {[%emt 0:00:30]} Nxd5 {[%emt 0:00:30]} 5. d4 {[%emt 0:00:30]} g6 {[%emt 0:00:30]} 6. c4 {[%emt 0:00:30]} Nb6 {[%emt 0:00:30]} 7. Nc3 {[%emt 0:00:30]} Bc8 {[%emt 0:03:30]} 8. c5 {[%emt 0:10:30]} Nd5 {[%emt 0:02:30]} 9. Nxd5 {[%emt 0:00:00]} Qxd5 {[%emt 0:00:30]} 10. Bf3 {[%emt 0:00:00]} Qd8 {[%emt 0:11:30]} 11. Ne2 {[%emt 0:04:30]} Bg7 {[%emt 0:00:30]} 12. O-O {[%emt 0:01:30]} O-O {[%emt 0:00:30]} 13. Be3 {[%emt 0:04:30]} c6 {[%emt 0:04:30]} 14. Qd2 {[%emt 0:08:30]} Be6 {[%emt 0:03:30]} 15. Nf4 {[%emt 0:03:30]} Bd5 {[%emt 0:12:30]} 16. Nxd5 {[%emt 0:00:30]} cxd5 {[%emt 0:00:00]} 17. b4 {[%emt 0:02:30]} e6 {[%emt 0:06:00]} 18. b5 {[%emt 0:02:30]} Nd7 {[%emt 0:07:30]} 19. a4 {[%emt 0:04:30]} Nf6 {[%emt 0:04:30]} 20. c6 {[%emt 0:10:30]} bxc6 {[%emt 0:02:30]} 21. bxc6 {[%emt 0:00:00]} Qd6 {[%emt 0:11:30]} 22. Rfc1 {[%emt 0:01:00]} Ne4 {[%emt 0:01:30]} 23. Bxe4 {[%emt 0:10:30]} dxe4 {[%emt 0:01:30]} 24. Rc4 {[%emt 0:01:30]} f5 {[%emt 0:02:30]} 25. g3 {[%emt 0:05:30]} Rac8 {[%emt 0:00:30]} 26. Rac1 {[%emt 0:01:30]} Rfd8 {[%emt 0:02:30]} 27. c7 {[%emt 0:01:30]} Rd7 {[%emt 0:05:16]} 28. Rc6 {[%emt 0:05:30]} Qe7 {[%emt 0:00:41]} 29. Qa5 {[%emt 0:01:57]} Bxd4 {[%emt 0:03:15]} 30. Qa6 {[%emt 0:02:05]} Qf8 {[%emt 0:04:41]} 31. Bxd4 {[%emt 0:01:11]} Rxd4 {[%emt 0:00:30]} 32. Qxa7 {[%emt 0:00:23]} Rd7 {[%emt 0:06:33]} 33. Rb1 {[%emt 0:01:49]} f4 {[%emt 0:01:18]} 34. Qb7 {[%emt 0:05:12]} e3 {[%emt 0:00:52]} 35. f3 {[%emt 0:10:11]} Kg7 {[%emt 0:00:01]} 36. Qb2+ {[%emt 0:00:29]} Qf6 {[%emt 0:00:00]} 37. Qxf6+ {[%emt 0:00:49]} Kxf6 {[%emt 0:00:15]} 38. Rbc1 {[%emt 0:00:13]} Rd4 {[%emt 0:01:19]} 39. a5 {[%emt 0:00:29]} Ra4 {[%emt 0:00:26]} 40. a6 {[%emt 0:00:58]} fxg3 {[%emt 0:00:30]} 41. hxg3 {[%emt 0:00:00]} Ke7 {[%emt 0:00:10]} 42. Kf1 {[%emt 0:00:52]} Ra2 {[%emt 0:00:21]} 43. R1c2 {[%emt 0:00:04]} Ra3 {[%emt 0:01:08]} 44. Ke2 {[%emt 0:00:05]} Kd7 {[%emt 0:00:33]} 45. R2c3 {[%emt 0:00:39]} Ra5 {[%emt 0:00:38]} 46. Kxe3 {[%emt 0:00:24]} Re5+ {[%emt 0:00:43]} 47. Kf4 {[%emt 0:01:05]} Ra5 {[%emt 0:00:15]} 48. g4 {[%emt 0:00:20]} Rf8+ {[%emt 0:00:43]} 49. Kg3 {[%emt 0:00:45]} Rc8 {[%emt 0:00:18]} 50. R3c5 {[%emt 0:00:27]} Ra4 {[%emt 0:00:24]} 51. Kg2 {[%emt 0:00:52]} Ra2+ {[%emt 0:00:15]} 52. Kg3 {[%emt 0:00:17]} Ra4 {[%emt 0:00:03]} 53. Kh4 {[%emt 0:00:18]} h6 {[%emt 0:00:10]} 54. Kg3 {[%emt 0:00:19]} g5 {[%emt 0:01:46]} 55. Rb6 {[%emt 0:00:41]} Ra2 {[%emt 0:00:42]} 56. Rcc6 {[%emt 0:00:30]} Ra3 {[%emt 0:00:39]} 57. Rd6+ {[%emt 0:00:45]} Kxc7 {[%emt 0:00:30]} 58. Rbc6+ {[%emt 0:00:30]} Kb8 {[%emt 0:00:30]} 59. Rxc8+ {[%emt 0:00:30]} Kxc8 {[%emt 0:00:30]} 60. Rxe6 {[%emt 0:00:30]} Kb8 {[%emt 0:00:30]} 61. Rxh6 {[%emt 0:00:00]} Ra5 {[%emt 0:00:00]} 62. Rf6 {[%emt 0:00:00]} Kc7 {[%emt 0:00:19]} 63. Rf5 {[%emt 0:00:20]} Rxa6 {[%emt 0:00:30]} 64. Rxg5 {[%emt 0:00:30]} Kd7 {[%emt 0:00:00]} 65. Re5 {[%emt 0:00:00]} Kd6 {[%emt 0:00:05]} 66. Re4 {[%emt 0:00:00]} Kd5 {[%emt 0:00:00]} 67. g5 {[%emt 0:00:02]} Ra1 {[%emt 0:00:14]} 68. Kf4 {[%emt 0:00:30]} Rg1 {[%emt 0:00:30]} 69. Kf5 {[%emt 0:00:00]} Rg3 {[%emt 0:00:00]} 1-0

[Event "Turkish Cup 2022"]
[Site "Sakarya"]
[Date "2022.03.30"]
[Round "9.35"]
[White "Gok, Emre"]
[Black "Kurtyilmaz, Kuzey"]
[Result "1-0"]
[ECO "A02"]
[WhiteElo "1745"]
[BlackElo "1394"]
[Annotator "NA"]
[PlyCount "89"]
[EventDate "2022.03.25"]
[EventType "swiss"]
[EventCountry "TUR"]
[SourceTitle "playchess.com"]
[Source "ChessBase"]
[SourceQuality "1"]
[TimeControl "5400+30"]

1. b3 {[%emt 0:01:00]} Nf6 {[%emt 0:01:00]} 2. Bb2 {[%emt 0:01:30]} g6 {[%emt 0:00:00]} 3. f4 {[%emt 0:00:30]} Bg7 {[%emt 0:00:00]} 4. Nf3 {[%emt 0:00:30]} O-O {[%emt 0:00:30]} 5. e3 {[%emt 0:00:30]} d6 {[%emt 0:00:30]} 6. d4 {[%emt 0:00:30]} Nbd7 {[%emt 0:00:30]} 7. Bd3 {[%emt 0:01:30]} c5 {[%emt 0:01:30]} 8. O-O {[%emt 0:04:30]} cxd4 {[%emt 0:00:30]} 9. Bxd4 {[%emt 0:01:30]} Re8 {[%emt 0:02:30]} 10. Bc4 {[%emt 0:08:30]} Nb6 {[%emt 0:06:30]} 11. Bb5 {[%emt 0:04:30]} Bd7 {[%emt 0:00:30]} 12. a4 {[%emt 0:01:30]} Bxb5 {[%emt 0:01:30]} 13. axb5 {[%emt 0:00:00]} Nbd7 {[%emt 0:00:30]} 14. Na3 {[%emt 0:03:00]} e5 {[%emt 0:00:30]} 15. fxe5 {[%emt 0:01:30]} dxe5 {[%emt 0:00:30]} 16. Bb2 {[%emt 0:00:30]} e4 {[%emt 0:01:30]} 17. Nd4 {[%emt 0:02:30]} Ne5 {[%emt 0:00:30]} 18. Qe2 {[%emt 0:03:30]} Nh5 {[%emt 0:05:30]} 19. Nc4 {[%emt 0:00:30]} Qc7 {[%emt 0:11:30]} 20. Rxa7 {[%emt 0:03:30]} Rxa7 {[%emt 0:02:30]} 21. b6 {[%emt 0:00:30]} Qb8 {[%emt 0:00:30]} 22. bxa7 {[%emt 0:00:30]} Qxa7 {[%emt 0:00:30]} 23. Nd6 {[%emt 0:04:30]} Rd8 {[%emt 0:01:30]} 24. Nxe4 {[%emt 0:03:30]} f5 {[%emt 0:03:30]} 25. Ne6 {[%emt 0:04:30]} Re8 {[%emt 0:03:30]} 26. Nxg7 {[%emt 0:01:30]} Kxg7 {[%emt 0:00:00]} 27. Nd6 {[%emt 0:00:30]} Re6 {[%emt 0:00:00]} 28. Nc4 {[%emt 0:00:30]} Qc5 {[%emt 0:01:30]} 29. Nxe5 {[%emt 0:02:30]} Rxe5 {[%emt 0:00:30]} 30. Bxe5+ {[%emt 0:01:30]} Qxe5 {[%emt 0:00:30]} 31. Qd3 {[%emt 0:00:30]} Nf6 {[%emt 0:00:00]} 32. Qd4 {[%emt 0:00:30]} Qe6 {[%emt 0:00:00]} 33. Rd1 {[%emt 0:02:30]} Kf7 {[%emt 0:00:00]} 34. h3 {[%emt 0:00:30]} g5 {[%emt 0:01:00]} 35. c4 {[%emt 0:00:30]} h5 {[%emt 0:00:30]} 36. c5 {[%emt 0:01:30]} Qxb3 {[%emt 0:00:30]} 37. Rd3 {[%emt 0:01:30]} Qe6 {[%emt 0:00:30]} 38. h4 {[%emt 0:01:30]} g4 {[%emt 0:00:30]} 39. Qf4 {[%emt 0:01:30]} Nd5 {[%emt 0:02:30]} 40. Qd6 {[%emt 0:00:30]} Ne7 {[%emt 0:01:30]} 41. Qxe6+ {[%emt 0:01:30]} Kxe6 {[%emt 0:00:00]} 42. Rb3 {[%emt 0:00:30]} Nc6 {[%emt 0:00:00]} 43. Rxb7 {[%emt 0:00:30]} Kd5 {[%emt 0:00:30]} 44. Rh7 {[%emt 0:00:30]} Ke4 {[%emt 0:00:00]} 45. Rxh5 {[%emt 0:00:30]} 1-0